[Event "Late-Titled-Tuesday-Blitz-February-27-2024"]
[Site "Chess.com"]
[Date "2024.02.27"]
[Round "2"]
[White "lucasmito"]
[Black "chucksterf10"]
[Result "0-1"]
[WhiteElo "2844"]
[BlackElo "2583"]
[TimeControl "180+1"]
[EndTime "14:15:59 PST"]
[Termination "chucksterf10 won by resignation"]

1. e4 {[%clk 0:03:00.9]} 1... a6 {[%clk 0:02:56.6]} 2. d4 {[%clk 0:02:53]} 2...
c6 {[%clk 0:02:56.5]} 3. c4 {[%clk 0:02:48.9]} 3... d5 {[%clk 0:02:56.1]} 4. e5
{[%clk 0:02:48.6]} 4... Bf5 {[%clk 0:02:55.1]} 5. Nc3 {[%clk 0:02:49]} 5... e6
{[%clk 0:02:55.4]} 6. Nge2 {[%clk 0:02:28.1]} 6... Ne7 {[%clk 0:02:51.7]} 7. Ng3
{[%clk 0:02:28.1]} 7... Bg6 {[%clk 0:02:51.5]} 8. h4 {[%clk 0:02:28.2]} 8... h6
{[%clk 0:02:51.1]} 9. h5 {[%clk 0:02:28.4]} 9... Bh7 {[%clk 0:02:51.3]} 10. Bd3
{[%clk 0:02:25.8]} 10... Bxd3 {[%clk 0:02:51.8]} 11. Qxd3 {[%clk 0:02:26.7]}
11... Nd7 {[%clk 0:02:49.5]} 12. b3 {[%clk 0:02:20.1]} 12... c5 {[%clk
0:02:42.4]} 13. cxd5 {[%clk 0:02:12]} 13... Nxd5 {[%clk 0:02:41.3]} 14. Nxd5
{[%clk 0:02:11.7]} 14... exd5 {[%clk 0:02:41.6]} 15. Nf5 {[%clk 0:02:01.1]}
15... Qa5+ {[%clk 0:02:29.8]} 16. Bd2 {[%clk 0:01:59.2]} 16... Qb5 {[%clk
0:02:30.3]} 17. Qg3 {[%clk 0:01:37.1]} 17... O-O-O {[%clk 0:02:22]} 18. a4
{[%clk 0:01:36.9]} 18... Qc6 {[%clk 0:02:13.7]} 19. O-O {[%clk 0:01:36.8]} 19...
g6 {[%clk 0:02:11.9]} 20. hxg6 {[%clk 0:01:27.9]} 20... Qxg6 {[%clk 0:02:11.3]}
21. Qf3 {[%clk 0:01:24.6]} 21... cxd4 {[%clk 0:02:04.8]} 22. Bf4 {[%clk
0:00:58.3]} 22... Qxf5 {[%clk 0:01:59.8]} 23. Rac1+ {[%clk 0:00:54.3]} 23... Kb8
{[%clk 0:01:58.1]} 24. e6+ {[%clk 0:00:50.7]} 24... Ne5 {[%clk 0:01:58.2]} 25.
exf7 {[%clk 0:00:38.5]} 25... Bd6 {[%clk 0:01:55.3]} 26. Bxe5 {[%clk 0:00:28.8]}
26... Qxe5 {[%clk 0:01:54.7]} 27. g3 {[%clk 0:00:25.4]} 27... Rhf8 {[%clk
0:01:54.9]} 28. Rfe1 {[%clk 0:00:18.4]} 28... Qg5 {[%clk 0:01:53.6]} 29. Kg2
{[%clk 0:00:13.1]} 29... Ka7 {[%clk 0:01:43]} 30. a5 {[%clk 0:00:06.6]} 30...
Rd7 {[%clk 0:01:43.1]} 31. Re8 {[%clk 0:00:05.1]} 31... Rdxf7 {[%clk 0:01:39.6]}
32. Rcc8 {[%clk 0:00:04.3]} 32... Rxe8 {[%clk 0:01:36.5]} 33. Qxd5 {[%clk
0:00:01.4]} 0-1

[Event "Late-Titled-Tuesday-Blitz-February-27-2024"]
[Site "Chess.com"]
[Date "2024.02.27"]
[Round "2"]
[White "Ticoluis"]
[Black "JaackCamel"]
[Result "0-1"]
[WhiteElo "2451"]
[BlackElo "2233"]
[TimeControl "180+1"]
[EndTime "14:16:00 PST"]
[Termination "JaackCamel won by resignation"]

1. e4 {[%clk 0:02:36]} 1... e6 {[%clk 0:02:59.6]} 2. d4 {[%clk 0:02:34.9]} 2...
d5 {[%clk 0:02:59.3]} 3. Nd2 {[%clk 0:02:35.6]} 3... c5 {[%clk 0:02:58.5]} 4.
Ngf3 {[%clk 0:02:34.7]} 4... cxd4 {[%clk 0:02:57.8]} 5. exd5 {[%clk 0:02:34.1]}
5... Qxd5 {[%clk 0:02:57.3]} 6. Bc4 {[%clk 0:02:34.7]} 6... Qd6 {[%clk
0:02:57.1]} 7. O-O {[%clk 0:02:35.2]} 7... Nf6 {[%clk 0:02:56.6]} 8. Nb3 {[%clk
0:02:20.3]} 8... Nc6 {[%clk 0:02:55.9]} 9. Nbxd4 {[%clk 0:02:19.6]} 9... Nxd4
{[%clk 0:02:55]} 10. Nxd4 {[%clk 0:02:16.7]} 10... a6 {[%clk 0:02:55]} 11. c3
{[%clk 0:02:12.5]} 11... Qc7 {[%clk 0:02:54.5]} 12. Bb3 {[%clk 0:02:12.6]} 12...
Bd6 {[%clk 0:02:54.1]} 13. Re1 {[%clk 0:02:10.3]} 13... Bxh2+ {[%clk 0:02:48.6]}
14. Kh1 {[%clk 0:02:10.7]} 14... Be5 {[%clk 0:02:42.5]} 15. Bg5 {[%clk
0:02:06.5]} 15... O-O {[%clk 0:02:40.1]} 16. Nf3 {[%clk 0:02:00.3]} 16... Bf4
{[%clk 0:02:30.4]} 17. Bxf6 {[%clk 0:01:59.6]} 17... gxf6 {[%clk 0:02:30.4]} 18.
Qd4 {[%clk 0:01:59.7]} 18... e5 {[%clk 0:02:03.6]} 19. Qe4 {[%clk 0:01:52.6]}
19... f5 {[%clk 0:01:58.7]} 20. Qb4 {[%clk 0:01:49.1]} 20... Be6 {[%clk
0:01:52.4]} 21. g3 {[%clk 0:01:44.8]} 21... Qc6 {[%clk 0:01:40.8]} 22. Kg2
{[%clk 0:01:42.1]} 22... Kh8 {[%clk 0:01:36.5]} 23. gxf4 {[%clk 0:01:38.7]}
23... Rg8+ {[%clk 0:01:36.3]} 24. Kf1 {[%clk 0:01:36.7]} 24... Qxf3 {[%clk
0:01:27]} 25. Bd1 {[%clk 0:01:30.3]} 25... Qd3+ {[%clk 0:01:17.1]} 26. Re2
{[%clk 0:01:26.1]} 26... Rad8 {[%clk 0:00:46.3]} 27. f3 {[%clk 0:00:47]} 27...
Qxf3+ {[%clk 0:00:44.3]} 28. Rf2 {[%clk 0:00:47]} 28... Rxd1+ {[%clk 0:00:43.5]}
0-1

[Event "Late-Titled-Tuesday-Blitz-February-27-2024"]
[Site "Chess.com"]
[Date "2024.02.27"]
[Round "2"]
[White "Josetricks"]
[Black "pirulillo"]
[Result "0-1"]
[WhiteElo "2470"]
[BlackElo "2224"]
[TimeControl "180+1"]
[EndTime "14:16:05 PST"]
[Termination "pirulillo won by checkmate"]

1. d4 {[%clk 0:01:49.7]} 1... Nf6 {[%clk 0:02:57.4]} 2. Nc3 {[%clk 0:01:46.8]}
2... d5 {[%clk 0:02:56.1]} 3. Bf4 {[%clk 0:01:46.8]} 3... g6 {[%clk 0:02:54.1]}
4. Nf3 {[%clk 0:01:45.7]} 4... Bg7 {[%clk 0:02:53.7]} 5. Ne5 {[%clk 0:01:46.1]}
5... O-O {[%clk 0:02:51.7]} 6. e3 {[%clk 0:01:46.6]} 6... c5 {[%clk 0:02:51.2]}
7. h4 {[%clk 0:01:46.8]} 7... h5 {[%clk 0:02:49.6]} 8. Qd2 {[%clk 0:01:42.6]}
8... Be6 {[%clk 0:02:44.5]} 9. O-O-O {[%clk 0:01:42.1]} 9... cxd4 {[%clk
0:02:43]} 10. exd4 {[%clk 0:01:40.6]} 10... Nc6 {[%clk 0:02:42.8]} 11. Nxc6
{[%clk 0:01:39.8]} 11... bxc6 {[%clk 0:02:42.1]} 12. Be5 {[%clk 0:01:37.7]}
12... Qa5 {[%clk 0:02:22.1]} 13. Bd3 {[%clk 0:01:31.5]} 13... c5 {[%clk
0:02:04.7]} 14. Rhe1 {[%clk 0:01:18.6]} 14... c4 {[%clk 0:02:00.7]} 15. Be2
{[%clk 0:01:11.4]} 15... Ne4 {[%clk 0:01:24.1]} 16. Nxe4 {[%clk 0:01:07.4]}
16... Qxa2 {[%clk 0:01:24.4]} 17. Nc3 {[%clk 0:01:02.3]} 17... Qa1+ {[%clk
0:01:19.6]} 18. Nb1 {[%clk 0:01:02.4]} 18... Rab8 {[%clk 0:01:17.8]} 19. c3
{[%clk 0:00:58.4]} 19... a5 {[%clk 0:01:08.7]} 20. Bxg7 {[%clk 0:00:55.8]} 20...
Kxg7 {[%clk 0:01:01.2]} 21. Qc2 {[%clk 0:00:16.7]} 21... Bf5 {[%clk 0:00:58.3]}
22. Qxf5 {[%clk 0:00:16.7]} 22... Qxb2# {[%clk 0:00:54.7]} 0-1

[Event "Late-Titled-Tuesday-Blitz-February-27-2024"]
[Site "Chess.com"]
[Date "2024.02.27"]
[Round "2"]
[White "xasid81"]
[Black "bancsoo"]
[Result "1-0"]
[WhiteElo "2595"]
[BlackElo "2888"]
[TimeControl "180+1"]
[EndTime "14:16:06 PST"]
[Termination "xasid81 won by resignation"]

1. d4 {[%clk 0:02:54.9]} 1... d5 {[%clk 0:02:59.8]} 2. Nf3 {[%clk 0:02:54.2]}
2... Nf6 {[%clk 0:02:59.5]} 3. Bg5 {[%clk 0:02:53.7]} 3... Ne4 {[%clk 0:02:57]}
4. Bf4 {[%clk 0:02:53.7]} 4... c5 {[%clk 0:02:57.5]} 5. e3 {[%clk 0:02:50.1]}
5... Qb6 {[%clk 0:02:51.8]} 6. Qc1 {[%clk 0:02:39.9]} 6... Nc6 {[%clk 0:02:50]}
7. c3 {[%clk 0:02:39]} 7... Bf5 {[%clk 0:02:46.8]} 8. Nbd2 {[%clk 0:02:38]} 8...
e6 {[%clk 0:02:46.6]} 9. Nxe4 {[%clk 0:02:36.3]} 9... Bxe4 {[%clk 0:02:46.7]}
10. Be2 {[%clk 0:02:34.2]} 10... Be7 {[%clk 0:02:46.1]} 11. O-O {[%clk
0:02:33.4]} 11... O-O {[%clk 0:02:46.6]} 12. Qd2 {[%clk 0:02:31.8]} 12... Rfd8
{[%clk 0:02:42.3]} 13. Ne5 {[%clk 0:02:31.2]} 13... Rac8 {[%clk 0:02:38.5]} 14.
Bd3 {[%clk 0:02:25.3]} 14... Nxe5 {[%clk 0:02:28.7]} 15. Bxe5 {[%clk 0:02:24.7]}
15... Bxd3 {[%clk 0:02:10.5]} 16. Qxd3 {[%clk 0:02:25.6]} 16... Qxb2 {[%clk
0:01:59.7]} 17. Rfb1 {[%clk 0:02:10.2]} 17... c4 {[%clk 0:01:39]} 18. Qxh7+
{[%clk 0:01:45.3]} 18... Kxh7 {[%clk 0:01:38.9]} 19. Rxb2 {[%clk 0:01:46.2]}
19... Rd7 {[%clk 0:01:30.4]} 20. Rab1 {[%clk 0:01:44.9]} 20... b6 {[%clk
0:01:29.2]} 21. a4 {[%clk 0:01:45]} 21... Bd8 {[%clk 0:01:23.9]} 22. f3 {[%clk
0:01:42.9]} 22... f6 {[%clk 0:01:22.3]} 23. Bg3 {[%clk 0:01:42.9]} 23... g5
{[%clk 0:01:18.5]} 24. h4 {[%clk 0:01:40.7]} 24... gxh4 {[%clk 0:01:17.8]} 25.
Bxh4 {[%clk 0:01:41.6]} 25... Kg6 {[%clk 0:01:18.4]} 26. Kf2 {[%clk 0:01:39.9]}
26... Bc7 {[%clk 0:01:18.4]} 27. Bg3 {[%clk 0:01:38.7]} 27... e5 {[%clk
0:01:17.9]} 28. Rb5 {[%clk 0:01:35.2]} 28... Re8 {[%clk 0:00:59.4]} 29. Rd1
{[%clk 0:01:26.6]} 29... exd4 {[%clk 0:00:46.6]} 30. Bxc7 {[%clk 0:01:25.2]}
30... dxe3+ {[%clk 0:00:45.1]} 31. Ke2 {[%clk 0:01:25.2]} 31... Rxc7 {[%clk
0:00:45.6]} 32. Rbxd5 {[%clk 0:01:22.5]} 32... Rh7 {[%clk 0:00:30.5]} 33. Rd8
{[%clk 0:01:18.4]} 33... Rxd8 {[%clk 0:00:26.2]} 34. Rxd8 {[%clk 0:01:17.6]}
34... Rh2 {[%clk 0:00:26.9]} 35. Kxe3 {[%clk 0:01:15.6]} 35... Rxg2 {[%clk
0:00:27.2]} 36. Rg8+ {[%clk 0:01:15.4]} 1-0

[Event "Late-Titled-Tuesday-Blitz-February-27-2024"]
[Site "Chess.com"]
[Date "2024.02.27"]
[Round "2"]
[White "ahkashefi2800"]
[Black "pinguino120"]
[Result "1-0"]
[WhiteElo "2620"]
[BlackElo "2372"]
[TimeControl "180+1"]
[EndTime "14:16:06 PST"]
[Termination "ahkashefi2800 won by resignation"]

1. Nf3 {[%clk 0:03:00.3]} 1... d5 {[%clk 0:02:54.6]} 2. g3 {[%clk 0:02:58.6]}
2... Nf6 {[%clk 0:02:54.5]} 3. Bg2 {[%clk 0:02:59.5]} 3... Bg4 {[%clk
0:02:51.8]} 4. O-O {[%clk 0:03:00.4]} 4... c6 {[%clk 0:02:51.8]} 5. c4 {[%clk
0:03:00.6]} 5... e6 {[%clk 0:02:51.7]} 6. cxd5 {[%clk 0:03:01]} 6... exd5 {[%clk
0:02:51.8]} 7. d4 {[%clk 0:03:01.5]} 7... Nbd7 {[%clk 0:02:51.4]} 8. Bf4 {[%clk
0:03:01.4]} 8... Be7 {[%clk 0:02:51.3]} 9. Ne5 {[%clk 0:03:01.7]} 9... Bh5
{[%clk 0:02:48.3]} 10. Nd2 {[%clk 0:03:01.7]} 10... O-O {[%clk 0:02:47.8]} 11.
Ndf3 {[%clk 0:02:58.5]} 11... Nxe5 {[%clk 0:02:43.7]} 12. Nxe5 {[%clk
0:02:56.8]} 12... Ng4 {[%clk 0:02:38.5]} 13. Nxg4 {[%clk 0:02:56]} 13... Bxg4
{[%clk 0:02:39.4]} 14. a3 {[%clk 0:02:54.2]} 14... a5 {[%clk 0:02:38.5]} 15. Qd2
{[%clk 0:02:53.9]} 15... Re8 {[%clk 0:02:36.7]} 16. Rfe1 {[%clk 0:02:49.9]}
16... Bd6 {[%clk 0:02:34.6]} 17. Bxd6 {[%clk 0:02:49.5]} 17... Qxd6 {[%clk
0:02:35.5]} 18. e3 {[%clk 0:02:49.6]} 18... a4 {[%clk 0:02:27.1]} 19. Rec1
{[%clk 0:02:46.5]} 19... Bf5 {[%clk 0:02:25]} 20. Qc3 {[%clk 0:02:42.2]} 20...
h5 {[%clk 0:02:15.9]} 21. b4 {[%clk 0:02:42.1]} 21... axb3 {[%clk 0:02:14]} 22.
Qxb3 {[%clk 0:02:42.4]} 22... Ra7 {[%clk 0:02:12.5]} 23. a4 {[%clk 0:02:41.4]}
23... Rea8 {[%clk 0:02:08.3]} 24. Ra2 {[%clk 0:02:37.2]} 24... h4 {[%clk
0:01:52.5]} 25. Rca1 {[%clk 0:02:34.9]} 25... h3 {[%clk 0:01:52.6]} 26. Bf1
{[%clk 0:02:34]} 26... Be4 {[%clk 0:01:50.5]} 27. Bxh3 {[%clk 0:02:33.3]} 27...
g5 {[%clk 0:01:43.5]} 28. Bf1 {[%clk 0:02:32.8]} 28... Kg7 {[%clk 0:01:42]} 29.
Qc3 {[%clk 0:02:31.6]} 29... g4 {[%clk 0:01:32.1]} 30. a5 {[%clk 0:02:31.3]}
30... Qh6 {[%clk 0:01:31.2]} 31. Qc5 {[%clk 0:02:00.4]} 31... Rh8 {[%clk
0:01:25.8]} 32. h4 {[%clk 0:01:58.4]} 32... gxh3 {[%clk 0:01:25.4]} 33. Kh2
{[%clk 0:01:58.6]} 33... Qf6 {[%clk 0:01:17.1]} 34. f4 {[%clk 0:01:44.9]} 34...
Raa8 {[%clk 0:01:08.2]} 35. a6 {[%clk 0:01:44.7]} 35... bxa6 {[%clk 0:00:48]}
36. Rxa6 {[%clk 0:01:44.2]} 36... Rxa6 {[%clk 0:00:48.1]} 37. Rxa6 {[%clk
0:01:44.2]} 37... Rh6 {[%clk 0:00:48.2]} 38. Ra8 {[%clk 0:01:43.1]} 38... Rg6
{[%clk 0:00:31.5]} 39. Qf8+ {[%clk 0:01:42.3]} 39... Kh7 {[%clk 0:00:31.9]} 40.
Bxh3 {[%clk 0:01:39.4]} 40... Rg7 {[%clk 0:00:31]} 41. g4 {[%clk 0:01:35.1]}
41... Qh4 {[%clk 0:00:29.9]} 42. Qh8+ {[%clk 0:01:33.8]} 1-0

[Event "Late-Titled-Tuesday-Blitz-February-27-2024"]
[Site "Chess.com"]
[Date "2024.02.27"]
[Round "2"]
[White "Beca95"]
[Black "rhungaski"]
[Result "1-0"]
[WhiteElo "2926"]
[BlackElo "2593"]
[TimeControl "180+1"]
[EndTime "14:16:10 PST"]
[Termination "Beca95 won on time"]

1. e4 {[%clk 0:03:00.9]} 1... c5 {[%clk 0:02:59.4]} 2. Nf3 {[%clk 0:02:59.6]}
2... Nc6 {[%clk 0:02:59.5]} 3. Bb5 {[%clk 0:02:59.6]} 3... d6 {[%clk 0:02:59.2]}
4. O-O {[%clk 0:02:58.7]} 4... Bd7 {[%clk 0:02:59.3]} 5. c3 {[%clk 0:02:57.7]}
5... a6 {[%clk 0:02:58]} 6. Ba4 {[%clk 0:02:56.6]} 6... Nf6 {[%clk 0:02:58.2]}
7. Re1 {[%clk 0:02:56.3]} 7... b5 {[%clk 0:02:54.9]} 8. Bc2 {[%clk 0:02:55.7]}
8... Bg4 {[%clk 0:02:52.3]} 9. h3 {[%clk 0:02:54.7]} 9... Bxf3 {[%clk
0:02:50.4]} 10. Qxf3 {[%clk 0:02:55.6]} 10... g6 {[%clk 0:02:49.7]} 11. d3
{[%clk 0:02:55.5]} 11... Bg7 {[%clk 0:02:48.2]} 12. Nd2 {[%clk 0:02:55.7]} 12...
O-O {[%clk 0:02:47.5]} 13. Qd1 {[%clk 0:02:56.3]} 13... Nd7 {[%clk 0:02:44]} 14.
Nf3 {[%clk 0:02:56.9]} 14... e5 {[%clk 0:02:39.2]} 15. a4 {[%clk 0:02:54.7]}
15... Nb6 {[%clk 0:02:35]} 16. Be3 {[%clk 0:02:45.3]} 16... Re8 {[%clk
0:02:25.8]} 17. Bb3 {[%clk 0:02:41.8]} 17... h6 {[%clk 0:02:14.8]} 18. g3 {[%clk
0:02:39]} 18... Qc7 {[%clk 0:02:06.7]} 19. Nh4 {[%clk 0:02:37.2]} 19... Kh7
{[%clk 0:01:59.9]} 20. Qf3 {[%clk 0:02:35.2]} 20... Rf8 {[%clk 0:01:49.9]} 21.
axb5 {[%clk 0:02:35.1]} 21... axb5 {[%clk 0:01:50.5]} 22. Rxa8 {[%clk
0:02:35.3]} 22... Nxa8 {[%clk 0:01:51.2]} 23. Ra1 {[%clk 0:02:35.3]} 23... Nb6
{[%clk 0:01:42.2]} 24. Kg2 {[%clk 0:02:34.8]} 24... Qb7 {[%clk 0:01:36.5]} 25.
Kh2 {[%clk 0:02:09.4]} 25... c4 {[%clk 0:01:31.6]} 26. Bxb6 {[%clk 0:02:06.9]}
26... cxb3 {[%clk 0:01:20.1]} 27. Be3 {[%clk 0:02:06]} 27... b4 {[%clk
0:01:15.2]} 28. c4 {[%clk 0:02:05.5]} 28... Kg8 {[%clk 0:01:08.5]} 29. Qd1
{[%clk 0:02:04.7]} 29... Ra8 {[%clk 0:01:01.9]} 30. Rxa8+ {[%clk 0:02:03.3]}
30... Qxa8 {[%clk 0:01:02.8]} 31. Qxb3 {[%clk 0:02:03.2]} 31... Qa1 {[%clk
0:01:03.5]} 32. Kg2 {[%clk 0:02:02.5]} 32... Bf6 {[%clk 0:00:44.1]} 33. Nf3
{[%clk 0:01:59.1]} 33... Kg7 {[%clk 0:00:44.1]} 34. c5 {[%clk 0:01:53.8]} 34...
dxc5 {[%clk 0:00:40.8]} 35. Bxc5 {[%clk 0:01:54.7]} 35... Qa5 {[%clk 0:00:40.1]}
36. Qd5 {[%clk 0:01:53.7]} 36... Qa6 {[%clk 0:00:34.6]} 37. Nd2 {[%clk
0:01:52.8]} 37... h5 {[%clk 0:00:16]} 38. Nc4 {[%clk 0:01:52.3]} 38... b3 {[%clk
0:00:16.7]} 39. h4 {[%clk 0:01:48]} 39... Kg8 {[%clk 0:00:02.3]} 40. Qd7 {[%clk
0:01:46.2]} 40... Bg7 {[%clk 0:00:01]} 41. Nd6 {[%clk 0:01:45.3]} 1-0

[Event "Late-Titled-Tuesday-Blitz-February-27-2024"]
[Site "Chess.com"]
[Date "2024.02.27"]
[Round "2"]
[White "pooh2012"]
[Black "Ali_rastbod"]
[Result "0-1"]
[WhiteElo "2475"]
[BlackElo "2713"]
[TimeControl "180+1"]
[EndTime "14:16:14 PST"]
[Termination "Ali_rastbod won by resignation"]

1. Nf3 {[%clk 0:03:00.9]} 1... c5 {[%clk 0:02:59.3]} 2. c4 {[%clk 0:03:00.1]}
2... Nc6 {[%clk 0:02:57.8]} 3. Nc3 {[%clk 0:02:58.8]} 3... g6 {[%clk 0:02:56.3]}
4. h4 {[%clk 0:02:57.3]} 4... Nf6 {[%clk 0:02:55.2]} 5. b3 {[%clk 0:02:56.6]}
5... Bg7 {[%clk 0:02:54.2]} 6. Bb2 {[%clk 0:02:57.2]} 6... O-O {[%clk
0:02:54.4]} 7. e3 {[%clk 0:02:54.7]} 7... e6 {[%clk 0:02:49.8]} 8. Be2 {[%clk
0:02:37.7]} 8... d5 {[%clk 0:02:49.6]} 9. cxd5 {[%clk 0:02:34.2]} 9... exd5
{[%clk 0:02:50.5]} 10. Na4 {[%clk 0:02:26.2]} 10... Qe7 {[%clk 0:02:34.1]} 11.
Rc1 {[%clk 0:02:22]} 11... b6 {[%clk 0:02:26.6]} 12. d4 {[%clk 0:02:16.2]} 12...
Ne4 {[%clk 0:02:26.9]} 13. dxc5 {[%clk 0:02:13.7]} 13... Bxb2 {[%clk 0:02:25]}
14. Nxb2 {[%clk 0:02:14.6]} 14... bxc5 {[%clk 0:02:25.4]} 15. Qxd5 {[%clk
0:01:55.4]} 15... Bb7 {[%clk 0:02:24.5]} 16. Qc4 {[%clk 0:01:46.9]} 16... Nb4
{[%clk 0:02:22.1]} 17. Ng5 {[%clk 0:01:06.2]} 17... Bd5 {[%clk 0:01:53.2]} 18.
Nxe4 {[%clk 0:01:00]} 18... Bxc4 {[%clk 0:01:51.2]} 19. Rxc4 {[%clk 0:01:00.9]}
19... Nxa2 {[%clk 0:01:46.1]} 20. h5 {[%clk 0:00:56]} 20... Rac8 {[%clk
0:01:39.5]} 21. hxg6 {[%clk 0:00:53.6]} 21... hxg6 {[%clk 0:01:40.4]} 22. Na4
{[%clk 0:00:50]} 22... Nb4 {[%clk 0:01:36.9]} 23. Nexc5 {[%clk 0:00:47.6]} 23...
Nd5 {[%clk 0:01:32.4]} 24. O-O {[%clk 0:00:33.4]} 24... a5 {[%clk 0:01:25.6]}
25. Bg4 {[%clk 0:00:26.9]} 25... Rcd8 {[%clk 0:01:20.5]} 26. Bf3 {[%clk
0:00:25.4]} 26... Kg7 {[%clk 0:01:17.7]} 27. Rd1 {[%clk 0:00:22.4]} 27... Nxe3
{[%clk 0:01:09.5]} 28. fxe3 {[%clk 0:00:17.7]} 28... Qxe3+ {[%clk 0:01:07.6]}
29. Kf1 {[%clk 0:00:18.3]} 29... Rh8 {[%clk 0:01:05.7]} 0-1

[Event "Late-Titled-Tuesday-Blitz-February-27-2024"]
[Site "Chess.com"]
[Date "2024.02.27"]
[Round "2"]
[White "wild3000"]
[Black "C_K_G"]
[Result "1-0"]
[WhiteElo "2459"]
[BlackElo "2146"]
[TimeControl "180+1"]
[EndTime "14:16:15 PST"]
[Termination "wild3000 won on time"]

1. d4 {[%clk 0:02:59.1]} 1... d5 {[%clk 0:02:58.7]} 2. c4 {[%clk 0:02:58.2]}
2... e6 {[%clk 0:02:58.2]} 3. Nc3 {[%clk 0:02:58.2]} 3... Nf6 {[%clk 0:02:58.4]}
4. Nf3 {[%clk 0:02:57.7]} 4... a6 {[%clk 0:02:55.1]} 5. a3 {[%clk 0:02:53.1]}
5... dxc4 {[%clk 0:02:51.9]} 6. e4 {[%clk 0:02:52.6]} 6... b5 {[%clk 0:02:48]}
7. Bg5 {[%clk 0:02:52.1]} 7... Be7 {[%clk 0:02:46.4]} 8. g3 {[%clk 0:02:48.1]}
8... Bb7 {[%clk 0:02:45.8]} 9. Qc2 {[%clk 0:02:47.8]} 9... O-O {[%clk
0:02:44.6]} 10. Bg2 {[%clk 0:02:47.4]} 10... h6 {[%clk 0:02:43.6]} 11. Bf4
{[%clk 0:02:43.7]} 11... Nbd7 {[%clk 0:02:39.8]} 12. O-O {[%clk 0:02:43]} 12...
c5 {[%clk 0:02:28.3]} 13. Rad1 {[%clk 0:02:19.4]} 13... b4 {[%clk 0:02:22.7]}
14. axb4 {[%clk 0:02:10.2]} 14... cxb4 {[%clk 0:02:23.6]} 15. e5 {[%clk
0:02:10.5]} 15... Nd5 {[%clk 0:02:01.8]} 16. Nxd5 {[%clk 0:02:03.4]} 16... Bxd5
{[%clk 0:01:58.9]} 17. Nd2 {[%clk 0:01:56.6]} 17... Rc8 {[%clk 0:01:47.2]} 18.
Bxd5 {[%clk 0:01:50.4]} 18... exd5 {[%clk 0:01:48.1]} 19. Be3 {[%clk 0:01:50.9]}
19... a5 {[%clk 0:01:36.1]} 20. f4 {[%clk 0:01:50.2]} 20... b3 {[%clk
0:01:31.9]} 21. Qc1 {[%clk 0:01:50]} 21... Bb4 {[%clk 0:01:30.5]} 22. Nb1 {[%clk
0:01:49.6]} 22... a4 {[%clk 0:01:26.8]} 23. f5 {[%clk 0:01:48.3]} 23... a3
{[%clk 0:00:43.7]} 24. bxa3 {[%clk 0:01:43.7]} 24... Ba5 {[%clk 0:00:41.5]} 25.
Bxh6 {[%clk 0:01:40.6]} 25... c3 {[%clk 0:00:33.5]} 26. Bxg7 {[%clk 0:01:37.6]}
26... Kxg7 {[%clk 0:00:32.3]} 27. f6+ {[%clk 0:01:36.3]} 27... Kh7 {[%clk
0:00:29.3]} 28. Qg5 {[%clk 0:01:32.8]} 28... Nxf6 {[%clk 0:00:07.9]} 29. exf6
{[%clk 0:01:19.5]} 1-0

[Event "Late-Titled-Tuesday-Blitz-February-27-2024"]
[Site "Chess.com"]
[Date "2024.02.27"]
[Round "2"]
[White "OPQRC"]
[Black "BardArtem"]
[Result "0-1"]
[WhiteElo "2527"]
[BlackElo "2740"]
[TimeControl "180+1"]
[EndTime "14:16:19 PST"]
[Termination "BardArtem won by checkmate"]

1. e4 {[%clk 0:02:57.3]} 1... c5 {[%clk 0:02:57.3]} 2. Nf3 {[%clk 0:02:57]} 2...
d6 {[%clk 0:02:57.5]} 3. d4 {[%clk 0:02:56.8]} 3... cxd4 {[%clk 0:02:58.4]} 4.
Nxd4 {[%clk 0:02:57.7]} 4... Nf6 {[%clk 0:02:59]} 5. Nc3 {[%clk 0:02:58.2]} 5...
a6 {[%clk 0:02:59.6]} 6. Bg5 {[%clk 0:02:58.6]} 6... Nbd7 {[%clk 0:02:58.7]} 7.
f4 {[%clk 0:02:58.3]} 7... h6 {[%clk 0:02:56.7]} 8. Bh4 {[%clk 0:02:57.4]} 8...
e5 {[%clk 0:02:52.1]} 9. fxe5 {[%clk 0:02:46.2]} 9... dxe5 {[%clk 0:02:53]} 10.
Nf3 {[%clk 0:02:43.6]} 10... Be7 {[%clk 0:02:51.2]} 11. Bd3 {[%clk 0:02:32.2]}
11... O-O {[%clk 0:02:50.5]} 12. O-O {[%clk 0:02:24.9]} 12... b5 {[%clk
0:02:45.4]} 13. Kh1 {[%clk 0:02:09.3]} 13... Bb7 {[%clk 0:02:36.6]} 14. Qe2
{[%clk 0:02:01.8]} 14... Rc8 {[%clk 0:02:19.1]} 15. Rad1 {[%clk 0:01:55.1]}
15... Qa5 {[%clk 0:02:16.1]} 16. Bg3 {[%clk 0:01:32.7]} 16... b4 {[%clk
0:02:08.5]} 17. Nb1 {[%clk 0:01:30.3]} 17... Rfd8 {[%clk 0:02:04.7]} 18. Nbd2
{[%clk 0:01:27.4]} 18... Qxa2 {[%clk 0:01:48.4]} 19. Nc4 {[%clk 0:01:20.7]}
19... Qa4 {[%clk 0:01:39.4]} 20. b3 {[%clk 0:01:09.6]} 20... Qc6 {[%clk
0:01:36.8]} 21. Nfxe5 {[%clk 0:01:09.2]} 21... Nxe5 {[%clk 0:01:37.7]} 22. Nxe5
{[%clk 0:01:08.4]} 22... Qc3 {[%clk 0:01:27.3]} 23. Bc4 {[%clk 0:01:04.8]} 23...
Rf8 {[%clk 0:01:17.6]} 24. Ng6 {[%clk 0:01:01.1]} 24... Bc5 {[%clk 0:01:02.7]}
25. Nxf8 {[%clk 0:00:54]} 25... Rxf8 {[%clk 0:01:03.6]} 26. e5 {[%clk
0:00:24.6]} 26... Ne4 {[%clk 0:01:02.5]} 27. e6 {[%clk 0:00:23.4]} 27... Nxg3+
{[%clk 0:00:57.9]} 28. hxg3 {[%clk 0:00:23.2]} 28... Qxg3 {[%clk 0:00:58.8]} 29.
exf7+ {[%clk 0:00:21.3]} 29... Kh8 {[%clk 0:00:58.5]} 30. Rd3 {[%clk 0:00:17]}
30... Qh4+ {[%clk 0:00:57.6]} 31. Rh3 {[%clk 0:00:16.8]} 31... Qxh3# {[%clk
0:00:58.5]} 0-1